[Event "12th National Amateur Chess-ch 2025"]
[Site "Bihar"]
[Date "2025.03.26"]
[Round "2.1"]
[White "Sahoo Stitaprangya"]
[Black "Anadkat Kartavya"]
[Result "0-1"]
[Annotator "TA"]
[ECO "C54"]
[WhiteElo "1812"]
[BlackElo "2175"]
[PlyCount "52"]
[EventDate "2025.03.25"]
[EventCountry "IND"]
[SourceTitle "playchess.com"]
[Source "ChessBase"]
[SourceQuality "1"]
[TimeControl "5400+30"]

{[%evp 13,52,19,39,16,18,18,14,2,-1,-82,-72,-78,-69,-345,-340,-375,-308,-358,-359,-352,-267,-327,-330,-343,-334,-341,-329,-338,-281,-229,-274,-266,-265,-272,-262,-290,-270,-1006,-1004,-1030,-1001]} 1. e4 {[%emt 0:00:03]} e5 {[%emt 0:07:38]} 2. Nf3 {[%emt 0:00:05]} Nc6 {[%emt 0:00:04]} 3. Bc4 {[%emt 0:00:34]} Bc5 {[%emt 0:00:43]} 4. c3 {[%emt 0:00:08]} Nf6 {[%emt 0:00:06]} 5. d3 {[%emt 0:00:08]} d6 {[%emt 0:00:19]} 6. O-O {[%emt 0:01:46]} a6 {[%emt 0:00:05]} 7. b4 {[%emt 0:04:15] 7.Re1 is the recent fashion.} Ba7 {[%emt 0:00:39]} 8. Nbd2 {[%emt 0:01:40] C54: Giuoco Piano: 4 c3 Nf6, main lines with 5 d4 and 5 d3.} h6 {[%emt 0:01:13]} 9. a4 {[%emt 0:02:52]} Ne7 {[%emt 0:03:27]} 10. Qb3 {[%emt 0:03:07] The position is equal.} O-O {[%emt 0:00:17][%cal Ob7b5]} 11. Re1 {[%emt 0:08:12] [#]} (11. d4 $11 {remains equal.}) 11... b5 $1 $17 {[%emt 0:01:42]} 12. axb5 {[%emt 0:00:44]} axb5 {[%emt 0:00:09]} 13. Bxf7+ $146 {[%emt 0:13:14][%mdl 8192]} (13. Ra3 bxc4 14. Qa2 Bxf2+ 15. Kxf2 Rxa3 16. Qxa3 cxd3 17. c4 Be6 18. Qxd3 Qb8 19. Qc3 {0-1 Kovalskyi,R (1815)-Zvolensky,D (2159) CZE-ch Amateur 2022 (2)}) 13... Rxf7 $19 {[%emt 0:00:10]} 14. Bb2 {[%emt 0:00:10]} Bd7 {[%emt 0:09:32]} 15. d4 {[%emt 0:02:19]} Ng6 {[%emt 0:05:12]} 16. c4 {[%emt 0:16:28]} Bxd4 {[%emt 0:02:16]} 17. Bxd4 {[%emt 0:01:39]} exd4 {[%emt 0:00:06]} 18. Rxa8 {[%emt 0:00:06]} Qxa8 {[%emt 0:00:04]} 19. Nxd4 {[%emt 0:00:07]} bxc4 {[%emt 0:04:12]} 20. Qxc4 {[%emt 0:00:54]} d5 {[%emt 0:03:21]} 21. Qxc7 {[%emt 0:02:59]} Nxe4 {[%emt 0:00:57]} 22. Nxe4 {[%emt 0:01:03]} dxe4 {[%emt 0:00:04]} 23. Qc2 {[%emt 0:09:32]} Kh7 {[%emt 0:24:25]} 24. b5 {[%emt 0:02:08]} Qd5 {[%emt 0:02:32]} 25. Rxe4 {[%emt 0:17:22]} (25. Qb3 Qxb3 26. Nxb3) 25... Bf5 {[%emt 0:03:57]} 26. Nxf5 {[%emt 0:00:38] [#]} Rc7 $3 {[%emt 0:00:03][%mdl 512] White got outplayed after the opening.   Weighted Error Value: White=0.68/Black=0.15 (very precise)   Loses game:     	White=1     	---        Mistake:       	White=2     	---        OK:         	White=6     	Black=5      Best:        	---       	Black=1      Brilliant:      	---       	Black=1} 0-1

[Event "12th National Amateur Chess-ch 2025"]
[Site "Bihar"]
[Date "2025.03.26"]
[Round "2.2"]
[White "Shreyas"]
[Black "Daksh Goyal"]
[Result "1-0"]
[Annotator "TA"]
[ECO "E04"]
[WhiteElo "1798"]
[BlackElo "2079"]
[PlyCount "123"]
[EventDate "2025.03.25"]
[EventCountry "IND"]
[SourceTitle "playchess.com"]
[Source "ChessBase"]
[SourceQuality "1"]
[TimeControl "5400+30"]

{[%evp 18,123,29,22,26,0,9,4,12,0,0,-17,90,89,81,76,75,74,77,85,79,84,93,78,134,137,149,96,91,85,170,166,168,168,174,173,172,162,212,190,207,203,225,232,243,235,392,401,360,349,339,335,485,401,382,328,337,321,322,330,322,268,269,272,275,263,280,268,279,269,268,251,342,331,311,224,278,278,278,278,406,400,354,278,270,0,378,341,486,491,1142,1119,2107,1933,1606,1553,29978,29979,29979,29979,29983,29984,29986,29986,29989,29990,29990,29989]} 1. Nf3 {[%emt 0:00:30]} d5 {[%emt 0:04:34]} 2. g3 {[%emt 0:02:43]} c5 {[%emt 0:00:52]} 3. Bg2 {[%emt 0:00:12]} Nc6 {[%emt 0:00:02]} 4. d4 {[%emt 0:00:38]} e6 {[%emt 0:03:19]} 5. O-O {[%emt 0:02:41]} Nf6 {[%emt 0:00:53]} 6. c4 {[%emt 0:02:16]} dxc4 {[%emt 0:03:29]} 7. dxc5 {[%emt 0:16:57]} Qxd1 {[%emt 0:04:06]} 8. Rxd1 {[%emt 0:00:48]} Bxc5 {[%emt 0:01:43]} 9. Nbd2 {[%emt 0:00:22]} c3 {[%emt 0:00:56]} 10. bxc3 {[%emt 0:01:39]} O-O {[%emt 0:04:37] E04: Open Catalan: 5 Nf3.} 11. Ne1 {[%emt 0:15:29]} Rd8 {[%emt 0:13:37]} 12. Nd3 {[%emt 0:02:33]} Be7 {[%emt 0:02:15] The position is equal.} 13. Nb3 {[%emt 0:18:17] has lost popularity (13.Rb1).} Nd5 {[%emt 0:22:56]} 14. Bb2 {[%emt 0:02:18]} b5 $146 {[%emt 0:10:10]} (14... Nb6 $11) (14... Nb6 15. Bxc6 bxc6 16. Na5 Bd7 17. Ne5 Bf6 18. Nxd7 Rxd7 19. Rxd7 Nxd7 20. Nxc6 Nb6 {1-0 Chigaev,M (2624)-Yuan,Q (2341) Titled Tuesday intern op 10th Sep Late blitz 2024 (3)}) 15. Nf4 $16 {[%emt 0:06:37]} Rb8 {[%emt 0:08:49]} (15... Nxf4 $2 16. Rxd8+ Nxd8 (16... Bxd8 $2 17. gxf4 Rb8 18. Bxc6 $18) 17. Bxa8 $18) 16. Nxd5 {[%emt 0:03:40]} (16. Bxd5 $6 exd5 17. Nxd5 Bf8 $11) 16... exd5 {[%emt 0:00:02]} 17. Rxd5 {[%emt 0:00:58]} Be6 {[%emt 0:04:46]} 18. Rxd8+ {[%emt 0:00:15]} Nxd8 {[%emt 0:00:01]} 19. Nd4 {[%emt 0:05:19]} Bc4 {[%emt 0:00:28]} 20. e3 {[%emt 0:05:38]} Bf6 {[%emt 0:02:51]} (20... Rb6 $142) 21. Ba3 {[%emt 0:04:14]} Rb6 {[%emt 0:05:40]} 22. Bf1 {[%emt 0:02:49]} ({White should try} 22. Bc5 Ra6 23. a3) 22... Bxf1 {[%emt 0:02:44]} 23. Kxf1 {[%emt 0:00:22]} g6 {[%emt 0:01:10]} (23... Ra6 $16 24. Bc1 (24. Nxb5 Ra5 $17) 24... Ra5) 24. Bc5 $18 {[%emt 0:00:20]} Rb7 {[%emt 0:00:40]} 25. a4 $36 {[%emt 0:01:39][%mdl 2048] White is in control.} Ne6 {[%emt 0:00:58]} 26. Bb4 {[%emt 0:01:11]} bxa4 {[%emt 0:01:12]} 27. Rxa4 {[%emt 0:00:15]} Nc7 {[%emt 0:00:18]} (27... Bd8 $142 28. Nxe6 fxe6) 28. Ra5 {[%emt 0:01:49]} a6 {[%emt 0:00:39]} 29. Ke2 {[%emt 0:00:01]} Bd8 {[%emt 0:00:30]} 30. Ra4 {[%emt 0:00:37]} Rb6 {[%emt 0:00:29]} 31. Kd3 {[%emt 0:00:22]} g5 $2 {[%emt 0:00:33] [#]} (31... Ne6 32. c4 a5) 32. Ba5 {[%emt 0:00:48]} Rb2 {[%emt 0:00:30]} 33. Rc4 {[%emt 0:00:57]} Rb7 {[%emt 0:00:31]} 34. Rc6 {[%emt 0:01:04]} Ra7 {[%emt 0:00:35]} (34... Kf8 $142 35. c4 g4) 35. Bb6 {[%emt 0:00:07]} Rb7 {[%emt 0:00:30]} 36. Bxc7 {[%emt 0:00:03]} Bxc7 {[%emt 0:00:21]} 37. Rxa6 {[%emt 0:00:04][%mdl 4096] Endgame KRB-KRN. White is two pawns up.} Rb2 {[%emt 0:00:11]} 38. Nf5 {[%emt 0:00:26]} h5 {[%emt 0:00:13]} 39. Ra8+ {[%emt 0:01:15]} Kh7 {[%emt 0:00:02]} 40. Ra7 {[%emt 0:00:26]} Rxf2 {[%emt 0:00:35]} 41. Ke4 {[%emt 0:00:24] Prevents Be5.} Bb6 {[%emt 0:00:42]} 42. Ra6 {[%emt 0:00:47]} Bd8 {[%emt 0:01:21]} 43. Rh6+ {[%emt 0:00:06]} Kg8 {[%emt 0:00:02]} 44. Rxh5 {[%emt 0:00:23]} Bf6 {[%emt 0:00:31]} 45. Nh6+ {[%emt 0:00:23]} Kg7 {[%emt 0:00:34]} 46. Ng4 {[%emt 0:00:36]} Rg2 {[%emt 0:01:00]} 47. Nxf6 {[%emt 0:00:55]} Kxf6 {[%emt 0:00:01] KR-KR. White is two pawns up.} 48. h4 {[%emt 0:00:52]} gxh4 {[%emt 0:00:39]} (48... Rxg3 $142 49. Rxg5 Rh3) 49. gxh4 {[%emt 0:00:14]} Ke6 50. Rg5 {[%emt 0:00:49] Prevents Rg4+.} Rh2 {[%emt 0:00:40]} 51. Rh5 {[%emt 0:01:13]} (51. Re5+ $18 Kd7 52. Rh5) 51... Rd2 $2 {[%emt 0:01:08][%mdl 8192]} (51... Rg2 $1 $11 {and Black stays safe.} 52. c4 Rg4+ 53. Kd3 Rg1) 52. c4 {[%emt 0:00:23][%cal Bc3c4,Bc4c5,Bc5c6][%mdl 32]} f6 {[%emt 0:00:06]} (52... Rc2 {keeps fighting.} 53. Rh6+ f6) 53. c5 {[%emt 0:00:42]} Rd8 {[%emt 0:00:53]} (53... Rd1 $142 54. Kf3 Rf1+ 55. Ke2 Rh1) 54. c6 {[%emt 0:00:22] [#]} Rc8 {[%emt 0:00:35]} 55. Rc5 {[%emt 0:00:03] Strongly threatening c7.} Kd6 {[%emt 0:00:23]} 56. Rc4 {[%emt 0:00:33]} (56. Rf5 Kxc6 57. Rxf6+ Kd7 $16) 56... Rc7 {[%emt 0:00:28]} 57. Kf5 {[%emt 0:00:26] White mates.} Ke7 {[%emt 0:00:08]} 58. h5 {[%emt 0:00:05][%cal Bh4h5,Bh5h6,Bh6h7][%mdl 32]} Kf7 {[%emt 0:00:21]} 59. h6 {[%emt 0:00:01]} Kf8 {[%emt 0:01:05]} 60. Ke6 {[%emt 0:00:06]} Ke8 {[%emt 0:00:15]} 61. h7 {[%emt 0:00:25][%cal Rh7h8]} Re7+ {[%emt 0:00:17]} 62. Kd6 {[%emt 0:00:21] Weighted Error Value: White=0.16 (very precise) /Black=0.69  Loses game:     	---       	Black=1      Missed win:     	White=1     	---        Mistake:       	White=1     	Black=9      Inaccurate:     	---       	Black=2      OK:         	White=21    	Black=14     Best:        	White=3     	Black=1} 1-0

[Event "12th National Amateur Chess-ch 2025"]
[Site "Bihar"]
[Date "2025.03.26"]
[Round "2.3"]
[White "Sree Veeramani P"]
[Black "Reyan"]
[Result "0-1"]
[Annotator "TA"]
[ECO "B95"]
[WhiteElo "1796"]
[BlackElo "2005"]
[PlyCount "88"]
[EventDate "2025.03.25"]
[EventCountry "IND"]
[SourceTitle "playchess.com"]
[Source "ChessBase"]
[SourceQuality "1"]
[TimeControl "5400+30"]

{[%evp 13,88,2,22,13,110,118,108,104,116,150,151,108,148,37,48,56,56,0,2,0,0,-39,2,-183,-176,-194,-190,-200,-202,-267,-277,-396,-447,-482,-436,-462,-468,-446,-435,-508,-386,-377,-358,-423,-414,-431,-441,-436,-448,-506,-487,-472,-483,-556,-525,-647,-643,-625,-630,-687,-684,-666,-639,-692,-518,-493,0,-709,-707,-708,-667,-667,-619,-750,-742,-29990,-29991]} 1. e4 {[%emt 0:00:01]} c5 {[%emt 0:00:13]} 2. Nf3 {[%emt 0:00:02]} d6 {[%emt 0:00:09]} 3. d4 {[%emt 0:00:01]} cxd4 {[%emt 0:00:07]} 4. Nxd4 {[%emt 0:00:02]} Nf6 {[%emt 0:00:10]} 5. Nc3 {[%emt 0:00:02]} a6 {[%emt 0:00:06]} 6. Bg5 {[%emt 0:00:02]} Nbd7 {[%emt 0:00:08]} 7. Qd2 {[%emt 0:00:07]} e6 {[%emt 0:04:06]} 8. Bc4 {[%emt 0:00:36] B95: Sicilian Najdorf: 6 Bg5 e6, unusual White 7th moves.} b5 {[%emt 0:04:08] [#]} (8... h6 $11 9. Bxf6 Nxf6) 9. Bxe6 $1 $16 {[%emt 0:05:01][%mdl 512]} fxe6 {[%emt 0:01:26]} 10. Nxe6 {[%emt 0:00:01] White is better.} Qb6 {[%emt 0:02:12]} 11. Nd5 {[%emt 0:00:05]} Nxd5 {[%emt 0:01:28]} 12. Qxd5 {[%emt 0:00:02] Threatening mate with Nc7+.} Nb8 {[%emt 0:15:22] [#]} 13. Qxa8 $146 {[%emt 0:03:15] A sharp opening} ({White should try} 13. a4 $1 $16 {[%cal Ra4b5]}) ({Predecessor:} 13. Nxf8 Rxf8 14. Qxa8 Qxf2+ 15. Kd1 Qxg2 16. Re1 Qg4+ 17. Kc1 Qxg5+ 18. Kb1 Qe3 19. Rd1 {0-1 Gorovykh,E (2391)-Duzhakov,I (2304) Peterhof 2009 (7)}) 13... Bxe6 $14 {[%emt 0:00:40]} 14. Be3 $1 {[%emt 0:00:02]} Qd8 {[%emt 0:02:15]} 15. O-O-O {[%emt 0:07:01]} (15. a4 $14 b4 16. Qb7) 15... Be7 $132 {[%emt 0:04:12][%cal Oe8g8][%mdl 2048] Black is not keeping still} (15... Bxa2 $2 {is the wrong capture.} 16. b3 $18) 16. e5 {[%emt 0:00:25]} d5 {[%emt 0:06:44]} ({Much weaker is} 16... Bxa2 $6 17. b3 $18) 17. f4 {[%emt 0:13:26]} O-O {[%emt 0:02:17][%mdl 1024] [#] Black has compensation.} 18. g4 $2 {[%emt 0:00:01] White is now going downhill.} Bxg4 $19 {[%emt 0:10:19]} 19. Rd2 {[%emt 0:03:36]} Bf3 {[%emt 0:03:49]} 20. Rg1 {[%emt 0:00:36]} Qc7 {[%emt 0:04:25]} 21. Bd4 {[%emt 0:22:31]} Bc5 {[%emt 0:14:02] This pair of bishops is nice.} (21... Rxf4 22. Rd3 Rxd4 23. Rxf3 Qxe5 24. Rff1 $19) 22. Rg3 {[%emt 0:00:36]} (22. Bxc5 $142 Qxc5 23. Rg3) 22... Nc6 {[%emt 0:03:36]} (22... Rxf4 23. Bxc5 Qxe5 24. Rg1 $18) 23. Qxf8+ {[%emt 0:06:48]} Bxf8 {[%emt 0:00:08]} 24. Rxf3 {[%emt 0:00:04]} Qa5 {[%emt 0:01:57]} 25. a3 {[%emt 0:03:16]} b4 {[%emt 0:00:54]} 26. a4 {[%emt 0:00:02]} Qxa4 {[%emt 0:01:45][%cal Ra4a1]} 27. b3 {[%emt 0:00:02]} Qa5 {[%emt 0:00:46]} 28. Bb2 {[%emt 0:00:13] [#]} d4 $1 {[%emt 0:01:57]} 29. Kb1 {[%emt 0:00:02]} (29. Rfd3 Qa2) 29... Qd5 {[%emt 0:01:31]} 30. Rfd3 {[%emt 0:08:24]} Bc5 {[%emt 0:00:36]} 31. Rg3 {[%emt 0:00:02]} Na7 {[%emt 0:00:47]} 32. Rdg2 {[%emt 0:02:23]} Bf8 {[%emt 0:00:29]} 33. Rd2 {[%emt 0:03:09]} Nb5 {[%emt 0:00:10]} 34. Rgd3 {[%emt 0:00:02]} Bc5 {[%emt 0:01:19]} 35. Rd1 {[%emt 0:00:52]} Qe4 {[%emt 0:01:43] Wards off Re1} 36. Rf1 {[%emt 0:01:24]} Nc3+ {[%emt 0:00:55]} 37. Bxc3 {[%emt 0:00:04]} bxc3 {[%emt 0:00:11]} 38. Rg3 {[%emt 0:00:33]} Qd5 {[%emt 0:00:54] Threatens to win with ...Bf8.} 39. Kc1 {[%emt 0:00:28]} Qe4 $2 {[%emt 0:01:14]} (39... Kf7 $19 40. Kb1 Qe4) 40. Kd1 $2 {[%emt 0:00:46][%mdl 8192]} (40. Kb1 $11 a5 41. Kc1) 40... Be7 {[%emt 0:02:16]} 41. Kc1 {[%emt 0:05:03]} Bh4 {[%emt 0:00:53]} 42. Rd3 {[%emt 0:00:00]} Be1 {[%emt 0:00:13]} 43. Kd1 {[%emt 0:00:17]} Bd2 {[%emt 0:00:19]} 44. Rdf3 {[%emt 0:00:52]} Be3 {[%emt 0:02:03] Weighted Error Value: White=0.41/Black=0.12 (very precise)   Loses game:     	White=2     	---        Mistake:       	White=3     	Black=1      Inaccurate:     	White=2     	Black=1      OK:         	White=5     	Black=14     Best:        	White=1     	Black=4      Strong:       	White=1     	---        Brilliant:      	White=1     	---} 0-1

[Event "12th National Amateur Chess-ch 2025"]
[Site "Bihar"]
[Date "2025.03.26"]
[Round "2.4"]
[White "Mani, Sarbartho"]
[Black "Ayaan Garg"]
[Result "0-1"]
[Annotator "TA"]
[ECO "B19"]
[WhiteElo "1791"]
[BlackElo "1983"]
[PlyCount "75"]
[EventDate "2025.03.25"]
[EventCountry "IND"]
[SourceTitle "playchess.com"]
[Source "ChessBase"]
[SourceQuality "1"]
[TimeControl "5400+30"]

{[%evp 29,75,37,41,30,25,0,0,-22,-9,-39,19,8,60,14,17,15,25,2,6,2,13,14,18,14,16,0,4,-37,-30,-106,-111,-120,-107,-139,-118,-154,-154,-154,-147,-193,-189,-201,-210,-204,-193,-243,-238,-259]} 1. e4 {[%emt 0:00:42]} c6 {[%emt 0:00:18]} 2. d4 {[%emt 0:00:30]} d5 {[%emt 0:00:06]} 3. Nd2 {[%emt 0:00:20]} dxe4 {[%emt 0:00:06]} 4. Nxe4 {[%emt 0:00:05]} Bf5 {[%emt 0:00:06]} 5. Ng3 {[%emt 0:00:08]} Bg6 {[%emt 0:00:10]} 6. h4 {[%emt 0:00:06]} h6 {[%emt 0:00:00]} 7. Nf3 {[%emt 0:00:03]} Nd7 {[%emt 0:00:02]} 8. h5 {[%emt 0:00:47]} Bh7 {[%emt 0:00:06]} 9. Bd3 {[%emt 0:00:06]} Bxd3 {[%emt 0:00:08]} 10. Qxd3 {[%emt 0:00:06]} Ngf6 {[%emt 0:00:03]} 11. Bd2 {[%emt 0:00:24]} e6 {[%emt 0:00:51]} 12. O-O-O {[%emt 0:00:12]} Qc7 {[%emt 0:00:05]} 13. Ne4 {[%emt 0:00:48]} O-O-O {[%emt 0:00:58]} 14. Nxf6 {[%emt 0:00:47]} Nxf6 {[%emt 0:00:05]} 15. Qe2 {[%emt 0:01:16]} Bd6 {[%emt 0:23:00]} 16. Kb1 {[%emt 0:02:03] B19: Classical Caro-Kann: 4...Bf5 main line.} Rhe8 {[%emt 0:03:39]} 17. Be3 $146 {[%emt 0:11:16]} (17. c4 c5 18. Bc3 Qc6 19. Rh4 cxd4 20. Bxd4 Bc7 21. Ne5 Qxg2 22. Nxf7 e5 23. Nxd8 exd4 {0-1 Anwesh,U (2350)-Petkov,M (2496) Sitges Sunway op 10th 2023 (10)}) 17... Qa5 {[%emt 0:17:10]} 18. c4 {[%emt 0:02:45][%cal Of3e5] The position is equal.} Qf5+ {[%emt 0:12:53]} 19. Ka1 {[%emt 0:00:15]} Kb8 {[%emt 0:03:04]} (19... Bc7 $15) 20. Ne5 $11 {[%emt 0:07:44]} Nd7 {[%emt 0:08:49]} (20... Bxe5 $11 21. dxe5 Ng4) 21. Nxd7+ {[%emt 0:00:40]} (21. g4 $14 Qf6 22. f4) 21... Rxd7 {[%emt 0:00:50] [#]} 22. d5 $1 {[%emt 0:01:17]} c5 {[%emt 0:08:00]} (22... cxd5 23. cxd5) 23. dxe6 {[%emt 0:00:38]} Qxe6 {[%emt 0:02:46]} 24. Rd5 {[%emt 0:00:53]} b6 {[%emt 0:02:38]} 25. Rhd1 {[%emt 0:00:11]} Red8 {[%emt 0:00:54]} 26. Qd3 {[%emt 0:02:05]} Kc8 {[%emt 0:00:56]} 27. a3 {[%emt 0:05:25]} Be5 {[%emt 0:01:41]} 28. Ka2 {[%emt 0:02:40]} (28. Rxd7 {simplifies} Rxd7 29. Qxd7+ Qxd7 30. Rxd7 Kxd7 31. Ka2) 28... Bd4 {[%emt 0:00:45]} 29. Bxd4 {[%emt 0:01:47]} (29. Rxd7 $11 {keeps the balance.} Rxd7 30. Qc2) 29... Rxd5 $17 {[%emt 0:00:18]} 30. cxd5 {[%emt 0:01:04]} Rxd5 {[%emt 0:04:53] Black has a queen side majority} 31. Qc4 {[%emt 0:01:06] [#]} b5 $1 {[%emt 0:00:24]} (31... Rxh5 $2 32. Qxe6+ fxe6 33. Bxg7 $18) 32. Qb3 {[%emt 0:02:11][%cal Od1c1]} Rxd4 {[%emt 0:00:13] Black is clearly better.} ({Resist} 32... cxd4 33. Ka1 $17) 33. Qxe6+ {[%emt 0:00:08]} fxe6 {[%emt 0:00:03] KR-KR. Black is a pawn up.} 34. Re1 {[%emt 0:00:04]} (34. Rc1 $17 {might work better.} c4 35. Rc3) 34... Kd7 $19 {[%emt 0:00:09]} 35. Re3 {[%emt 0:00:08]} Rg4 {[%emt 0:00:30]} 36. Rd3+ {[%emt 0:01:25]} Ke7 {[%emt 0:00:29]} 37. g3 {[%emt 0:00:25]} (37. Rc3 $142) 37... Rg5 {[%emt 0:04:25]} 38. Ka1 {[%emt 0:00:05] Weighted Error Value: White=0.22 (precise) /Black=0.10 (very precise)   Mistake:       	White=4     	Black=2      Inaccurate:     	White=3     	---        OK:         	White=6     	Black=10     Best:        	---       	Black=2      Strong:       	---       	Black=1} 0-1